Workbook

Sheet Task_1
A1: Problem 1, TPG4230, Exam 2021
A3: Initial gas in place, G | B3: [Sm3] | C3: 72000000000
A4: Initial reservoir pressure, pRi | B4: [bara] | C4: 240
A5: Inflow coefficient, CR | B5: [Sm3/d/bar2n] | C5: 1000
A6: Inflow exponent, n | B6: [-] | C6: 0.8
A7: Tubing flow coefficient, CT | B7: [Sm3/d/bar] | C7: 38000
A8: Tubing exponent, S | B8: [-] | C8: 0.43
A9: Pipeline coefficient, CPL | B9: [Sm3/d/bar] | C9: 140000
A10: psep | B10: [bara] | C10: 60
A11: Nproducers | B11: [-] | C11: 6
A12: qplateau,field | B12: [Sm3/d] | C12: 10000000
A13: tuptime | B13: [d/year] | C13: 355
A14: Condensate gas-ratio, Cgr | B14: [Sm3/Sm3] | C14: 0.0003
A15: oil price, Po | B15: [USD/Sm3] | C15: 300
A16: gas price, Pg | B16: [USD/Sm3] | C16: 0.15
A17: Discount rate, i | B17: [-] | C17: 0.08
P18: NPVrev [1E09 USD] | Q18: =SUM(Q23:Q33)/1000000000 -> 5.745117048
B20: time | C20: qfield | D20: DGp | E20: Gp | F20: Rf | G20: pR | H20: qwell | I20: pwf | J20: pwh | K20: pTH | L20: psep | M20: Dpchoke | O20: DNp | P20: Revenue | Q20: Discounted revenue
B21: [years] | C21: [Sm3/d] | D21: [Sm3] | E21: [Sm3] | F21: [-] | G21: [bara] | H21: [Sm3/d] | I21: [bara] | J21: [bara] | K21: [bara] | L21: [bara] | M21: [bar] | O21: [Sm3] | P21: [USD] | Q21: [USD]
B22: 0 | C22: =$C$12 -> 10000000 | D22: 0 | E22: =D22 -> 0 | F22: =E22/$C$3 -> 0 | G22: =C4 -> 240 | H22: =C22/$C$11 -> 1666666.667 | I22: =IPRpwf($C$5,$C$6,G22,H22) -> 216.681675 | J22: =Tubingp2($C$7,$C$8,I22,H22) -> 169.1695896 | K22: =linep1($C$9,L22,C22) -> 93.28472981 | L22: =$C$10 -> 60 | M22: =J22-K22 -> 75.88485974 | O22: 0 | P22: 0 | Q22: 0
B23: 1 | C23: =$C$12 -> 10000000 | D23: =C22*(B23-B22)*$C$13 -> 3550000000 | E23: =SUM($D$22:D23) -> 3550000000 | F23: =E23/$C$3 -> 0.04930555556 | G23: =MBgastank_PR($G$22,F23) -> 228.1666667 | H23: =C23/$C$11 -> 1666666.667 | I23: =IPRpwf($C$5,$C$6,G23,H23) -> 203.4968699 | J23: =Tubingp2($C$7,$C$8,I23,H23) -> 158.1598802 | K23: =linep1($C$9,L23,C23) -> 93.28472981 | L23: =$C$10 -> 60 | M23: =J23-K23 -> 64.87515042 | O23: =$C$14*D23 -> 1065000 | P23: =O23*$C$15+D23*$C$16 -> 852000000 | Q23: =P23/((1+$C$17)^B23) -> 788888888.9
B24: 2 | C24: 10000000 | D24: =C23*(B24-B23)*$C$13 -> 3550000000 | E24: =SUM($D$22:D24) -> 7100000000 | F24: 0.09861111111 | G24: =MBgastank_PR($G$22,F24) -> 216.3333333 | H24: 1666666.667 | I24: =IPRpwf($C$5,$C$6,G24,H24) -> 190.1343193 | J24: =Tubingp2($C$7,$C$8,I24,H24) -> 146.9453098 | K24: =linep1($C$9,L24,C24) -> 93.28472981 | L24: 60 | M24: 53.66058003 | O24: 1065000 | P24: 852000000 | Q24: =P24/((1+$C$17)^B24) -> 730452674.9
B25: 3 | C25: 10000000 | D25: 3550000000 | E25: =SUM($D$22:D25) -> 10650000000 | F25: 0.1479166667 | G25: =MBgastank_PR($G$22,F25) -> 204.5 | H25: 1666666.667 | I25: =IPRpwf($C$5,$C$6,G25,H25) -> 176.5536696 | J25: =Tubingp2($C$7,$C$8,I25,H25) -> 135.475013 | K25: =linep1($C$9,L25,C25) -> 93.28472981 | L25: 60 | M25: 42.19028317 | O25: 1065000 | P25: 852000000 | Q25: 676345069.3
B26: 4 | C26: 10000000 | D26: 3550000000 | E26: =SUM($D$22:D26) -> 14200000000 | F26: 0.1972222222 | G26: =MBgastank_PR($G$22,F26) -> 192.6666667 | H26: 1666666.667 | I26: =IPRpwf($C$5,$C$6,G26,H26) -> 162.7003156 | J26: =Tubingp2($C$7,$C$8,I26,H26) -> 123.6778593 | K26: =linep1($C$9,L26,C26) -> 93.28472981 | L26: 60 | M26: 30.3931295 | O26: 1065000 | P26: 852000000 | Q26: 626245434.6
B27: 5 | C27: 10000000 | D27: 3550000000 | E27: =SUM($D$22:D27) -> 17750000000 | F27: 0.2465277778 | G27: =MBgastank_PR($G$22,F27) -> 180.8333333 | H27: 1666666.667 | I27: =IPRpwf($C$5,$C$6,G27,H27) -> 148.4979552 | J27: =Tubingp2($C$7,$C$8,I27,H27) -> 111.4501023 | K27: =linep1($C$9,L27,C27) -> 93.28472981 | L27: 60 | M27: 18.16537253 | O27: 1065000 | P27: 852000000 | Q27: 579856883.9
B28: 6 | C28: 10000000 | D28: 3550000000 | E28: =SUM($D$22:D28) -> 21300000000 | F28: 0.2958333333 | G28: =MBgastank_PR($G$22,F28) -> 169 | H28: 1666666.667 | I28: =IPRpwf($C$5,$C$6,G28,H28) -> 133.8355269 | J28: =Tubingp2($C$7,$C$8,I28,H28) -> 98.6317212 | K28: =linep1($C$9,L28,C28) -> 93.28472981 | L28: 60 | M28: 5.346991392 | O28: 1065000 | P28: 852000000 | Q28: 536904522.1
B29: 7 | C29: 9330263.612 | D29: 3550000000 | E29: =SUM($D$22:D29) -> 24850000000 | F29: 0.3451388889 | G29: =MBgastank_PR($G$22,F29) -> 157.1666667 | H29: 1555043.935 | I29: =IPRpwf($C$5,$C$6,G29,H29) -> 122.2138468 | J29: =Tubingp2($C$7,$C$8,I29,H29) -> 89.67453712 | K29: =linep1($C$9,L29,C29) -> 89.67453028 | L29: 60 | M29: 6.838007096e-06 | O29: 1065000 | P29: 852000000 | Q29: 497133816.8
B30: 8 | C30: 8281006.914 | D30: 3312243582 | E30: =SUM($D$22:D30) -> 2.816224358e+10 | F30: 0.391142272 | G30: =MBgastank_PR($G$22,F30) -> 146.1258547 | H30: 1380167.819 | I30: =IPRpwf($C$5,$C$6,G30,H30) -> 113.7561564 | J30: =Tubingp2($C$7,$C$8,I30,H30) -> 84.25397082 | K30: =linep1($C$9,L30,C30) -> 84.2539515 | L30: 60 | M30: 1.932648065e-05 | O30: 993673.0747 | P30: 794938459.8 | Q30: 429480514.9
B31: 9 | C31: 7339011.297 | D31: 2939757455 | E31: =SUM($D$22:D31) -> 3.110200104e+10 | F31: 0.4319722366 | G31: =MBgastank_PR($G$22,F31) -> 136.3266632 | H31: 1223168.55 | I31: =IPRpwf($C$5,$C$6,G31,H31) -> 106.542492 | J31: =Tubingp2($C$7,$C$8,I31,H31) -> 79.67444158 | K31: =linep1($C$9,L31,C31) -> 79.67442898 | L31: 60 | M31: 1.259326233e-05 | O31: 881927.2364 | P31: 705541789.1 | Q31: 352946551.3
B32: 10 | C32: 6492337.249 | D32: 2605349011 | E32: =SUM($D$22:D32) -> 3.370735005e+10 | F32: 0.4681576395 | G32: =MBgastank_PR($G$22,F32) -> 127.6421665 | H32: 1082056.208 | I32: =IPRpwf($C$5,$C$6,G32,H32) -> 100.4316457 | J32: =Tubingp2($C$7,$C$8,I32,H32) -> 75.83228275 | K32: =linep1($C$9,L32,C32) -> 75.83226756 | L32: 60 | M32: 1.518494783e-05 | O32: 781604.7032 | P32: 625283762.5 | Q32: 289627367
B33: 11 | C33: 5730507.154 | D33: =C32*(B33-B32)*$C$13 -> 2304779723 | E33: =SUM($D$22:D33) -> 3.601212977e+10 | F33: 0.500168469 | G33: =MBgastank_PR($G$22,F33) -> 119.9595674 | H33: =C33/$C$11 -> 955084.5256 | I33: =IPRpwf($C$5,$C$6,G33,H33) -> 95.29330773 | J33: =Tubingp2($C$7,$C$8,I33,H33) -> 72.6322542 | K33: =linep1($C$9,L33,C33) -> 72.63225524 | L33: 60 | M33: =J33-K33 -> -1.046981083e-06 | O33: 691433.917 | P33: 553147133.6 | Q33: =P33/((1+$C$17)^B33) -> 237235324.3

Sheet Task_2
A1: Problem 1, TPG4230, Exam 2021
A3: Initial gas in place, G | B3: [Sm3] | C3: =Task_1!C3 -> 72000000000
A4: Initial reservoir pressure, pRi | B4: [bara] | C4: =Task_1!C4 -> 240
A5: Inflow coefficient, CR | B5: [Sm3/d/bar2n] | C5: =Task_1!C5 -> 1000
A6: Inflow exponent, n | B6: [-] | C6: =Task_1!C6 -> 0.8
A7: Tubing flow coefficient, CT | B7: [Sm3/d/bar] | C7: =Task_1!C7 -> 38000
A8: Tubing exponent, S | B8: [-] | C8: =Task_1!C8 -> 0.43
A9: Pipeline coefficient, CPL | B9: [Sm3/d/bar] | C9: =Task_1!C9 -> 140000
A10: psep | B10: [bara] | C10: =Task_1!C10 -> 60
A11: Nproducers | B11: [-] | C11: =Task_1!C11 -> 6
A12: qplateau,field | B12: [Sm3/d] | C12: =Task_1!C12 -> 10000000
A13: tuptime | B13: [d/year] | C13: =Task_1!C13 -> 355
A14: Condensate gas-ratio, Cgr | B14: [Sm3/Sm3] | C14: =Task_1!C14 -> 0.0003 | M14: NPVrev difference between natural flow and compressor [1E09 USD] | R14: =R18-Task_1!Q18 -> 0.914759158
A15: oil price, Po | B15: [USD/Sm3] | C15: =Task_1!C15 -> 300
A16: gas price, Pg | B16: [USD/Sm3] | C16: =Task_1!C16 -> 0.15
A17: Discount rate, i | B17: [-] | C17: =Task_1!C17 -> 0.08
Q18: NPVrev [1E09 USD] | R18: =SUM(R23:R36)/1000000000 -> 6.659876206
B20: time | C20: qfield | D20: DGp | E20: Gp | F20: Rf | G20: pR | H20: qwell | I20: pwf | J20: pwh | K20: pTH | L20: psep | M20: Dpchoke/Dpcompressor | N20: Powercomp | P20: DNp | Q20: Revenue | R20: Discounted revenue
B21: [years] | C21: [Sm3/d] | D21: [Sm3] | E21: [Sm3] | F21: [-] | G21: [bara] | H21: [Sm3/d] | I21: [bara] | J21: [bara] | K21: [bara] | L21: [bara] | M21: [bar] | N21: [MW] | P21: [Sm3] | Q21: [USD] | R21: [USD]
B22: 0 | C22: =$C$12 -> 10000000 | D22: 0 | E22: =D22 -> 0 | F22: =E22/$C$3 -> 0 | G22: =C4 -> 240 | H22: =C22/$C$11 -> 1666666.667 | I22: =IPRpwf($C$5,$C$6,G22,H22) -> 216.681675 | J22: =Tubingp2($C$7,$C$8,I22,H22) -> 169.1695896 | K22: =linep1($C$9,L22,C22) -> 93.28472981 | L22: =$C$10 -> 60 | M22: =J22-K22 -> 75.88485974 | N22: 0
B23: 1 | C23: =$C$12 -> 10000000 | D23: =C22*(B23-B22)*$C$13 -> 3550000000 | E23: =SUM($D$22:D23) -> 3550000000 | F23: =E23/$C$3 -> 0.04930555556 | G23: =MBgastank_PR($G$22,F23) -> 228.1666667 | H23: =C23/$C$11 -> 1666666.667 | I23: =IPRpwf($C$5,$C$6,G23,H23) -> 203.4968699 | J23: =Tubingp2($C$7,$C$8,I23,H23) -> 158.1598802 | K23: =linep1($C$9,L23,C23) -> 93.28472981 | L23: =$C$10 -> 60 | M23: =J23-K23 -> 64.87515042 | N23: 0 | P23: =$C$14*D23 -> 1065000 | Q23: =P23*$C$15+D23*$C$16 -> 852000000 | R23: =Q23/((1+$C$17)^B23) -> 788888888.9
B24: 2 | C24: 10000000 | D24: =C23*(B24-B23)*$C$13 -> 3550000000 | E24: =SUM($D$22:D24) -> 7100000000 | F24: 0.09861111111 | G24: =MBgastank_PR($G$22,F24) -> 216.3333333 | H24: 1666666.667 | I24: =IPRpwf($C$5,$C$6,G24,H24) -> 190.1343193 | J24: =Tubingp2($C$7,$C$8,I24,H24) -> 146.9453098 | K24: =linep1($C$9,L24,C24) -> 93.28472981 | L24: 60 | M24: 53.66058003 | N24: 0 | P24: 1065000 | Q24: 852000000 | R24: =Q24/((1+$C$17)^B24) -> 730452674.9
B25: 3 | C25: 10000000 | D25: 3550000000 | E25: =SUM($D$22:D25) -> 10650000000 | F25: 0.1479166667 | G25: =MBgastank_PR($G$22,F25) -> 204.5 | H25: 1666666.667 | I25: =IPRpwf($C$5,$C$6,G25,H25) -> 176.5536696 | J25: =Tubingp2($C$7,$C$8,I25,H25) -> 135.475013 | K25: =linep1($C$9,L25,C25) -> 93.28472981 | L25: 60 | M25: 42.19028317 | N25: 0 | P25: 1065000 | Q25: 852000000 | R25: 676345069.3
B26: 4 | C26: 10000000 | D26: 3550000000 | E26: =SUM($D$22:D26) -> 14200000000 | F26: 0.1972222222 | G26: =MBgastank_PR($G$22,F26) -> 192.6666667 | H26: 1666666.667 | I26: =IPRpwf($C$5,$C$6,G26,H26) -> 162.7003156 | J26: =Tubingp2($C$7,$C$8,I26,H26) -> 123.6778593 | K26: =linep1($C$9,L26,C26) -> 93.28472981 | L26: 60 | M26: 30.3931295 | N26: 0 | P26: 1065000 | Q26: 852000000 | R26: 626245434.6
B27: 5 | C27: 10000000 | D27: 3550000000 | E27: =SUM($D$22:D27) -> 17750000000 | F27: 0.2465277778 | G27: =MBgastank_PR($G$22,F27) -> 180.8333333 | H27: 1666666.667 | I27: =IPRpwf($C$5,$C$6,G27,H27) -> 148.4979552 | J27: =Tubingp2($C$7,$C$8,I27,H27) -> 111.4501023 | K27: =linep1($C$9,L27,C27) -> 93.28472981 | L27: 60 | M27: 18.16537253 | N27: 0 | P27: 1065000 | Q27: 852000000 | R27: 579856883.9
B28: 6 | C28: 10000000 | D28: 3550000000 | E28: =SUM($D$22:D28) -> 21300000000 | F28: 0.2958333333 | G28: =MBgastank_PR($G$22,F28) -> 169 | H28: 1666666.667 | I28: =IPRpwf($C$5,$C$6,G28,H28) -> 133.8355269 | J28: =Tubingp2($C$7,$C$8,I28,H28) -> 98.6317212 | K28: =linep1($C$9,L28,C28) -> 93.28472981 | L28: 60 | M28: 5.346991392 | N28: 0 | P28: 1065000 | Q28: 852000000 | R28: 536904522.1
B29: 7 | C29: 10000000 | D29: 3550000000 | E29: =SUM($D$22:D29) -> 24850000000 | F29: 0.3451388889 | G29: =MBgastank_PR($G$22,F29) -> 157.1666667 | H29: 1666666.667 | I29: =IPRpwf($C$5,$C$6,G29,H29) -> 118.542437 | J29: =Tubingp2($C$7,$C$8,I29,H29) -> 84.95578985 | K29: =linep1($C$9,L29,C29) -> 93.28472981 | L29: 60 | M29: =K29-J29 -> 8.328939968 | N29: =Power_c(K29,J29,C29)/1000000 -> 1.345183176 | P29: 1065000 | Q29: 852000000 | R29: 497133816.8
B30: 8 | C30: 10000000 | D30: 3550000000 | E30: =SUM($D$22:D30) -> 28400000000 | F30: 0.3944444444 | G30: =MBgastank_PR($G$22,F30) -> 145.3333333 | H30: 1666666.667 | I30: =IPRpwf($C$5,$C$6,G30,H30) -> 102.3363378 | J30: =Tubingp2($C$7,$C$8,I30,H30) -> 69.92091758 | K30: =linep1($C$9,L30,C30) -> 93.28472981 | L30: 60 | M30: =K30-J30 -> 23.36381224 | N30: =Power_c(K30,J30,C30)/1000000 -> 4.275025145 | P30: 1065000 | Q30: 852000000 | R30: 460309089.6
B31: 9 | C31: 9648566.599 | D31: 3550000000 | E31: =SUM($D$22:D31) -> 31950000000 | F31: 0.44375 | G31: =MBgastank_PR($G$22,F31) -> 133.5 | H31: 1608094.433 | I31: =IPRpwf($C$5,$C$6,G31,H31) -> 87.40096657 | J31: =Tubingp2($C$7,$C$8,I31,H31) -> 56.37691371 | K31: =linep1($C$9,L31,C31) -> 91.37689316 | L31: 60 | M31: 34.99997944 | N31: =Power_c(K31,J31,C31)/1000000 -> 7.125820044 | P31: 1065000 | Q31: 852000000 | R31: 426212120
B32: 10 | C32: 8569006.675 | D32: 3425241143 | E32: =SUM($D$22:D32) -> 3.537524114e+10 | F32: 0.4913227936 | G32: =MBgastank_PR($G$22,F32) -> 122.0825295 | H32: 1428167.779 | I32: =IPRpwf($C$5,$C$6,G32,H32) -> 78.25955528 | J32: =Tubingp2($C$7,$C$8,I32,H32) -> 50.71066486 | K32: =linep1($C$9,L32,C32) -> 85.71067712 | L32: 60 | M32: 35.00001226 | N32: =Power_c(K32,J32,C32)/1000000 -> 6.923750899 | P32: 1027572.343 | Q32: 822057874.2 | R32: 380771854.2
B33: 11 | C33: 7610918.625 | D33: 3041997369 | E33: =SUM($D$22:D33) -> 3.841723851e+10 | F33: 0.5335727571 | G33: =MBgastank_PR($G$22,F33) -> 111.9425383 | H33: 1268486.437 | I33: =IPRpwf($C$5,$C$6,G33,H33) -> 70.43389148 | J33: =Tubingp2($C$7,$C$8,I33,H33) -> 45.96548809 | K33: =linep1($C$9,L33,C33) -> 80.96550107 | L33: 60 | M33: 35.00001298 | N33: =Power_c(K33,J33,C33)/1000000 -> 6.677273675 | P33: 912599.2108 | Q33: 730079368.7 | R33: 313118527.2
B34: 12 | C34: 6761479.803 | D34: =C33*(B34-B33)*$C$13 -> 2701876112 | E34: =SUM($D$22:D34) -> 4.111911462e+10 | F34: 0.5710988142 | G34: =MBgastank_PR($G$22,F34) -> 102.9362846 | H34: =C34/$C$11 -> 1126913.3 | I34: =IPRpwf($C$5,$C$6,G34,H34) -> 63.77014343 | J34: =Tubingp2($C$7,$C$8,I34,H34) -> 42.0229126 | K34: =linep1($C$9,L34,C34) -> 77.02292566 | L34: 60 | M34: 35.00001306 | N34: =Power_c(K34,J34,C34)/1000000 -> 6.389085176 | P34: 810562.8335 | Q34: 648450266.8 | R34: =Q34/((1+$C$17)^B34) -> 257508522.8
B35: 13 | C35: 6009046.119 | D35: =C34*(B35-B34)*$C$13 -> 2400325330 | E35: =SUM($D$22:D35) -> 4.351943995e+10 | F35: 0.604436666 | G35: =MBgastank_PR($G$22,F35) -> 94.93520015 | H35: =C35/$C$11 -> 1001507.686 | I35: =IPRpwf($C$5,$C$6,G35,H35) -> 58.12640579 | J35: =Tubingp2($C$7,$C$8,I35,H35) -> 38.77177958 | K35: =linep1($C$9,L35,C35) -> 73.77179209 | L35: 60 | M35: 35.00001251 | N35: =Power_c(K35,J35,C35)/1000000 -> 6.064766949 | P35: 720097.599 | Q35: 576078079.2 | R35: =Q35/((1+$C$17)^B35) -> 211822714.2
B36: 14 | C36: 5343002.182 | D36: 2133211372 | E36: =SUM($D$22:D36) -> 4.565265133e+10 | F36: 0.6340646017 | G36: =MBgastank_PR($G$22,F36) -> 87.82449558 | H36: 890500.3636 | I36: =IPRpwf($C$5,$C$6,G36,H36) -> 53.37220747 | J36: =Tubingp2($C$7,$C$8,I36,H36) -> 36.10917718 | K36: =linep1($C$9,L36,C36) -> 71.10916884 | L36: 60 | M36: 34.99999166 | N36: =Power_c(K36,J36,C36)/1000000 -> 5.712227014 | P36: 639963.4116 | Q36: 511970729.3 | R36: 174306087.6
